fUSD/lending_fUSD_20240904
["ID","MTS","AMOUNT","RATE_DAILY","PERIOD"]
[337122740,1725444662653,-969.63,0.0001457,2]
[337122741,1725444662663,-969.63,0.0001457,2]
[337122742,1725444662673,-969.63,0.0001457,2]
[337122743,1725444662682,-969.63,0.0001457,2]
[337122744,1725444662691,-969.63,0.0001457,2]
[337122745,1725444662701,-500.0,0.0001457,2]
[337122746,1725444662709,-500.0,0.0001457,2]
[337122747,1725444662718,-625.9,0.0001457,2]
[337122748,1725444662727,-625.9,0.0001457,2]
[337122749,1725444662736,-625.9,0.0001457,2]
[337122750,1725444662746,-625.9,0.0001457,2]
[337122751,1725444662755,-625.9,0.0001457,2]
[337122752,1725444662764,-625.9,0.0001457,2]
[337122753,1725444662773,-500.0,0.0001457,2]
[337122754,1725444662783,-500.0,0.0001457,2]
[337122755,1725444662793,-500.0,0.0001457,2]
[337122756,1725444662802,-500.0,0.0001457,2]
[337122757,1725444662811,-329.28242033,0.0001457,2]
[337122758,1725444662822,-583.52,0.0001457,2]
[337122759,1725444662835,-583.52,0.0001457,2]
[337122760,1725444662844,-583.52,0.0001457,2]
[337122761,1725444662853,-583.52,0.0001457,2]
[337122762,1725444662862,-583.52,0.0001457,2]
[337122763,1725444662875,-583.52,0.0001457,2]
[337122764,1725444662884,-668.95,0.0001457,2]
[337122765,1725444662894,-266.23933826,0.0001457,2]
[337122766,1725444663404,-402.71066174,0.0001457,2]
[337122767,1725444663414,-668.95,0.0001457,2]
[337122768,1725444663423,-367.5546804,0.0001457,2]
[337122769,1725444663444,-628.85,0.0001438,2]
[337122770,1725444665793,-1104.44560458,0.00014092,2]
[337122771,1725444665803,-753.45802708,0.00014281,2]
[337122772,1725444665814,-500.0,0.00014369,2]
[337122773,1725444665826,-500.0,0.00014369,2]
[337122774,1725444665836,-500.0,0.0001437,2]
[337122775,1725444665846,-500.0,0.0001437,2]
[337122776,1725444665856,-76.0867298,0.0001437,2]
[337122777,1725444863508,265.03,0.00013482,2]
[337122778,1725444938839,169.43,0.00010959,2]
[337122779,1725444944946,640.12,0.00013464,2]
[337122780,1725444982586,203.11,0.00011564,2]
[337122817,1725445062212,250.0,0.0001348,2]
[337124709,1725445321231,500.0,0.00011164,2]
[337124710,1725445356686,500.0,0.00011564,2]
[337124711,1725445357033,500.0,0.00011564,2]
[337124712,1725445357372,500.0,0.00011564,2]
[337124713,1725445358433,500.0,0.00011564,2]
[337124714,1725445359223,500.0,0.00011564,2]
[337124715,1725445359554,518.0,0.00011564,2]
[337124716,1725445459236,162.06,0.00010959,2]
[337124717,1725445483840,500.0,0.00011164,2]
[337124718,1725445505139,192.95,0.00011628,2]
[337124719,1725445507578,150.0,0.00013093,2]
[337124720,1725445507923,150.0,0.0001311,2]
[337124721,1725445508245,150.0,0.00013127,2]
[337124722,1725445508782,150.0,0.00013144,2]
[337124723,1725445509096,150.0,0.00013162,2]
[337124724,1725445509458,150.0,0.00013179,2]
[337124725,1725445509794,150.0,0.00013196,2]
[337124726,1725445510116,150.0,0.00013213,2]
[337124727,1725445510435,54.07663136,0.0001323,2]
[337124728,1725445510468,95.92336864,0.0001323,2]
[337124729,1725445510883,150.0,0.00013247,2]
[337124730,1725445511632,150.0,0.00013264,2]
[337124731,1725445511983,150.0,0.00013281,2]
[337124732,1725445512305,150.0,0.00013299,2]
[337124733,1725445512629,150.0,0.00013316,2]
[337124734,1725445512944,150.0,0.00013333,2]
[337124735,1725445513282,150.0,0.0001335,2]
[337124736,1725445513758,150.0,0.00013367,2]
[337124737,1725445514116,150.0,0.00013384,2]
[337124738,1725445514434,150.0,0.00013401,2]
[337124739,1725445514745,150.0,0.00013418,2]
[337124740,1725445515469,150.0,0.00013435,2]
[337124741,1725445515512,150.0,0.00013453,2]
[337124742,1725445515742,150.0,0.0001347,2]
[337124743,1725445516090,150.0,0.00013487,2]
[337124744,1725445526543,795.0,0.00013302,2]
[337124748,1725445546204,150.0,0.00013093,2]
[337124749,1725445546999,150.0,0.00013143,2]
[337124750,1725445547035,150.0,0.00013193,2]
[337124751,1725445547200,150.0,0.00013244,2]
[337124752,1725445547511,150.0,0.00013294,2]
[337124753,1725445547817,150.0,0.00013344,2]
[337124754,1725445548143,150.0,0.00013394,2]
[337124755,1725445548473,150.0,0.00013444,2]
[337124756,1725445548810,150.0,0.00013494,2]
[337124757,1725445551015,550.0,0.00011,2]
[337124758,1725445551965,19959.07663136,0.00010988,2]
[337124759,1725445551988,25000.0,0.00010988,2]
[337124760,1725445552012,1717.58942564,0.00010988,2]
[337124761,1725445552105,600.0,0.00013,2]
[337124766,1725445641065,250.0,0.00012588,2]
[337124774,1725445715512,-376.21,0.00013049,2]
[337124775,1725445715543,-376.21,0.00013053,2]
[337124776,1725445715572,-376.21,0.00013056,2]
[337124777,1725445715602,-376.21,0.0001306,2]
[337124778,1725445715630,-376.21,0.00013063,2]
[337124779,1725445715658,-376.21,0.00013067,2]
[337124780,1725445715686,-111.09100964,0.0001307,2]
[337124781,1725445715718,-265.11899036,0.0001307,2]
[337124782,1725445715746,-376.21,0.00013073,2]
[337124783,1725445715774,-376.21,0.00013077,2]
[337124784,1725445715802,-376.21,0.0001308,2]
[337124785,1725445715829,-499.99,0.0001308,2]
[337124786,1725445715858,-794.68,0.0001308,2]
[337124787,1725445715889,-376.21,0.00013084,2]
[337124788,1725445715918,-376.21,0.00013087,2]
[337124789,1725445716194,-376.21,0.00013091,2]
[337124790,1725445716223,-150.15075572,0.00013093,2]
[337124791,1725445716254,-150.0,0.00013093,2]
[337124792,1725445716281,-160.42444907,0.00013093,2]
[337124793,1725445716309,-150.17183139,0.00013093,2]
[337124794,1725445716337,-150.00000001,0.00013093,2]
[337124795,1725445716364,-150.16551522,0.00013093,2]
[337124796,1725445716393,-150.0,0.00013093,2]
[337124797,1725445716421,-150.0,0.00013093,2]
[337124798,1725445716449,-376.21,0.00013094,2]
[337124799,1725445716477,-376.21,0.00013097,2]
[337124800,1725445716504,-53.7257061,0.00013101,2]
[337125041,1725445840180,-322.4842939,0.00013101,2]
[337125043,1725445840192,-376.21,0.00013104,2]
[337125045,1725445840203,-376.21,0.00013108,2]
[337125047,1725445840212,-376.21,0.00013111,2]
[337125049,1725445840221,-376.21,0.00013115,2]
[337125051,1725445840230,-150.0,0.00013131,2]
[337125053,1725445840239,-150.0,0.0001317,2]
[337125055,1725445840248,-150.0,0.00013208,2]
[337125057,1725445840257,-150.0,0.00013246,2]
[337125059,1725445840267,-630.08,0.00013246,2]
[337125061,1725445840276,-150.0,0.00013255,2]
[337125062,1725445840285,-694.79567402,0.00013255,2]
[337125565,1725445845540,-322.54432598,0.00013255,2]
[337125567,1725445845551,-30.47272402,0.00013285,2]
[337125848,1725445911736,500.0,0.00011164,2]
[337125849,1725445932096,480.27,0.00012822,2]
[337125850,1725445963739,169.36574292,0.00012824,2]
[337125851,1725445963761,535.92425708,0.00012824,2]
[337125852,1725445974546,150.0,0.000102,5]
[337125853,1725445974567,150.0,0.000102,5]
[337125854,1725445974588,150.0,0.000102,5]
[337125855,1725445974609,150.0,0.000102,5]
[337125856,1725445974629,150.0,0.000102,5]
[337125857,1725445974650,224.52242222,0.000102,5]
[337125858,1725445974672,41.47757778,0.000102,5]
[337125859,1725445985784,223.48,0.00011628,2]
[337125860,1725446004769,150.0,0.00012829,2]
[337125861,1725446004792,2677.89,0.00012829,2]
[337125862,1725446008980,163.47,0.00010959,2]
[337125863,1725446071193,200.0,0.00012765,2]
[337125864,1725446169502,1000.0,0.00012729,2]
[337125865,1725446173987,217.67,0.00012729,2]
[337125866,1725446248918,564.56,0.00012727,2]
[337125867,1725446394910,150.0,0.00012717,2]
[337125868,1725446401438,1885.52,0.00012717,2]
[337125869,1725446402961,169.61529368,0.00012727,2]
[337125870,1725446451185,6442.49,0.00012717,2]
[337125871,1725446490733,539.91,0.00012724,2]
[337125872,1725446494627,223.35,0.000108,2]
[337125873,1725446676419,225.86,0.00012684,2]
[337125874,1725446710547,150.0,0.00012921,2]
[337125875,1725446710912,150.0,0.00012943,2]
[337125876,1725446711250,150.0,0.00012965,2]
[337125877,1725446711581,150.0,0.00012987,2]
[337125878,1725446734486,250.0,0.00012542,2]
[337125879,1725446735091,150.0,0.00012921,2]
[337125880,1725446735434,150.0,0.00012992,2]
[337125881,1725446749787,150.0,0.00012921,2]
[337125882,1725446750017,150.0,0.00012965,2]
[337125890,1725446763167,150.0,0.00012921,2]
[337125891,1725446772415,150.0,0.00012921,2]
[337125892,1725446780146,150.0,0.00012921,2]
[337125893,1725446815343,556.7546366,0.0001291,2]
[337125894,1725446820311,556.7546366,0.00012921,2]
[337125895,1725446826914,556.7546366,0.00012931,2]
[337125905,1725446860096,253.64,0.00010959,2]
[337125906,1725446870995,211.36,0.00010959,2]
[337125907,1725446876570,250.0,0.0001246,2]
[337125908,1725446881528,176.14,0.00010959,2]
[337125909,1725446892651,880.7,0.00010959,2]
[337125910,1725446953720,-150.0,0.00013009,2]
[337125911,1725446953751,-150.0,0.0001301,2]
[337125912,1725446953780,-150.0,0.00013031,2]
[337125913,1725446953810,-150.0,0.00013053,2]
[337125914,1725446953839,-572.14458097,0.00013055,2]
[337125915,1725446953869,-150.0,0.00013055,2]
[337125916,1725446953900,-223.35,0.00013064,2]
[337125917,1725446953936,-150.0,0.00013064,2]
[337125918,1725446953965,-150.0,0.00013075,2]
[337125919,1725446953994,-150.0,0.00013097,2]
[337125920,1725446954026,-150.0,0.000131,2]
[337125921,1725446954054,-150.99,0.000131,2]
[337125922,1725446954333,-857.02,0.000131,2]
[337125923,1725446954365,-499.99,0.000131,2]
[337125924,1725446954396,-150.0,0.00013119,2]
[337125925,1725446954427,-150.0,0.00013126,2]
[337125926,1725446954462,-150.0,0.00013136,2]
[337125927,1725446954493,-150.0,0.00013141,2]
[337125928,1725446954532,-150.0,0.00013145,2]
[337125929,1725446954564,-150.0,0.00013163,2]
[337125930,1725446954596,-150.0,0.00013186,2]
[337125931,1725446954628,-150.0,0.0001319,2]
[337125932,1725446954673,-1078.75743378,0.000132,2]
[337125933,1725446954709,-787.7372419,0.000132,2]
[337125944,1725447031736,-378.25609224,0.000132,2]
[337125945,1725447031860,-803.29923208,0.000132,2]
[337125946,1725447031869,-150.0,0.00013208,2]
[337125947,1725447031879,-150.0,0.00013208,2]
[337125948,1725447031889,-150.0,0.0001323,2]
[337125949,1725447031899,-412.38140261,0.00013234,2]
[337125950,1725447031908,-150.0,0.00013235,2]
[337125951,1725447031918,-150.0,0.00013252,2]
[337125952,1725447031927,-150.0,0.00013252,2]
[337125953,1725447031936,-150.0,0.00013274,2]
[337125954,1725447031946,-150.0,0.00013279,2]
[337125955,1725447031955,-150.0,0.00013279,2]
[337125956,1725447031964,-7287.17345531,0.0001328,2]
[337125957,1725447031976,-621.77146932,0.0001328,2]
[337125958,1725447031987,-1120.3923776,0.0001328,2]
[337125959,1725447031999,-450.25,0.0001328,2]
[337125960,1725447032010,-429.8742519,0.0001328,2]
[337125961,1725447032021,-397.23296653,0.0001328,2]
[337125962,1725447032032,-1300.99,0.0001328,2]
[337125964,1725447032043,-270.54903608,0.0001328,2]
[337125971,1725447033554,201.01,0.0001067,2]
[337125972,1725447033790,201.01,0.00012933,2]
[337125978,1725447037700,-1960.78773212,0.0001328,2]
[337125979,1725447037711,-1000.0,0.0001328,2]
[337125981,1725447037799,-410.82807031,0.0001328,2]
[337125982,1725447037858,-11669.51064083,0.0001328,2]
[337125983,1725447037867,-5594.95,0.0001328,2]
[337125984,1725447037877,-25883.0,0.0001328,2]
[337125985,1725447037888,-150.0,0.00013296,2]
[337125986,1725447037897,-150.0,0.00013318,2]
[337125987,1725447037907,-150.0,0.00013324,2]
[337125988,1725447037919,-150.0,0.00013331,2]
[337125989,1725447037929,-150.0,0.0001334,2]
[337125990,1725447037938,-150.0,0.00013351,2]
[337125991,1725447037949,-150.0,0.00013362,2]
[337125992,1725447037961,-150.0,0.00013369,2]
[337125993,1725447037970,-150.0,0.0001337,2]
[337125994,1725447037979,-150.0,0.00013384,2]
[337125995,1725447037988,-1623.88294,0.0001339,2]
[337125996,1725447037997,-328.82586,0.0001339,2]
[337125997,1725447038006,-328.82586,0.000134,2]
[337125998,1725447038018,-150.0,0.00013406,2]
[337125999,1725447038027,-150.0,0.00013414,2]
[337126000,1725447038037,-2157.37,0.00013416,2]
[337126001,1725447038047,-150.0,0.00013423,2]
[337126002,1725447038056,-150.0,0.00013429,2]
[337126003,1725447038066,-328.82586,0.0001344,2]
[337126004,1725447038075,-150.0,0.00013451,2]
[337126006,1725447038085,-150.0,0.00013459,2]
[337126008,1725447038094,-422.11,0.00013466,2]
[337126009,1725447038103,-150.0,0.00013473,2]
[337126011,1725447038113,-23830.31703739,0.00013478,2]
[337126012,1725447038122,-381.5733117,0.00013478,2]
[337126015,1725447038138,-40.5366883,0.00013478,2]
[337126018,1725447038159,-328.82586,0.0001348,2]
[337126021,1725447038176,-18.32657975,0.00013494,2]
[337126027,1725447038236,-181.67342025,0.00013494,2]
[337126030,1725447038253,-111.94026629,0.00013494,2]
[337126033,1725447038274,-88.05973371,0.00013494,2]
[337126035,1725447038288,-150.0,0.00013495,2]
[337126038,1725447038306,-150.0,0.00013495,2]
[337126042,1725447038325,-150.0,0.00013504,2]
[337126044,1725447038342,-355.0,0.00013504,2]
[337126046,1725447038354,-328.82586,0.0001351,2]
[337126049,1725447038373,-150.0,0.00013517,2]
[337126052,1725447038389,-150.0,0.00013536,2]
[337126054,1725447038406,-150.0,0.00013539,2]
[337126056,1725447038419,-156.79,0.00013546,2]
[337126060,1725447038442,-200.0,0.00013546,2]
[337126062,1725447038457,-194.76,0.00013546,2]
[337126064,1725447038472,-150.0,0.00013549,2]
[337126067,1725447038486,-328.82586,0.0001355,2]
[337126069,1725447038500,-156.79,0.00013551,2]
[337126072,1725447038516,-156.79,0.00013556,2]
[337126074,1725447038530,-156.79,0.00013561,2]
[337126077,1725447038545,-150.0,0.00013561,2]
[337126079,1725447038560,-156.79,0.00013566,2]
[337126081,1725447038575,-150.0,0.00013567,2]
[337126084,1725447038592,-156.79,0.0001357,2]
[337126087,1725447038607,-500.0,0.00013571,2]
[337126089,1725447038622,-500.0,0.00013571,2]
[337126091,1725447038637,-500.0,0.00013571,2]
[337126093,1725447038652,-500.0,0.00013571,2]
[337126094,1725447038667,-500.0,0.00013571,2]
[337126095,1725447038682,-500.0,0.00013571,2]
[337126097,1725447038696,-439.01374475,0.00013571,2]
[337126098,1725447038715,-83.35625525,0.00013571,2]
[337126099,1725447038729,-553.2,0.00013571,2]
[337126100,1725447038746,-156.79,0.00013575,2]
[337126101,1725447038762,-156.79,0.0001358,2]
[337126102,1725447038777,-150.0,0.00013583,2]
[337126103,1725447038792,-156.79,0.00013585,2]
[337126104,1725447038807,-28.30944929,0.0001359,2]
[337126106,1725447039762,-128.48055071,0.0001359,2]
[337126107,1725447039779,-150.0,0.00013593,2]
[337126108,1725447039794,-156.79,0.00013595,2]
[337126109,1725447039809,-81.78324494,0.000136,2]
[337126110,1725447039827,-75.00675506,0.000136,2]
[337126111,1725447039842,-150.0,0.000136,2]
[337126112,1725447039856,-149.75657681,0.000136,2]
[337126113,1725447039874,-0.24342319,0.000136,2]
[337126114,1725447039888,-150.0,0.000136,2]
[337126115,1725447039903,-150.0,0.000136,2]
[337126116,1725447039918,-150.0,0.000136,2]
[337126117,1725447039932,-150.0,0.000136,2]
[337126118,1725447039947,-150.0,0.000136,2]
[337126119,1725447039962,-2425.4947577,0.000136,2]
[337126120,1725447039975,-150.0,0.000136,2]
[337126121,1725447039990,-156.79,0.00013604,2]
[337126122,1725447040004,-150.0,0.00013605,2]
[337126123,1725447040019,-1001.92167631,0.00013605,2]
[337126124,1725447040033,-156.79,0.00013609,2]
[337126125,1725447040047,-156.79,0.00013614,2]
[337126126,1725447040062,-150.0,0.00013627,2]
[337126127,1725447040076,-200.0,0.00013629,2]
[337126128,1725447040091,-200.0,0.00013629,2]
[337126129,1725447040105,-150.0,0.00013638,2]
[337126130,1725447040120,-150.0,0.00013638,2]
[337126131,1725447040135,-150.0,0.00013649,2]
[337126132,1725447040150,-150.0,0.00013671,2]
[337126133,1725447040165,-422.11,0.00013677,2]
[337126136,1725447040179,-150.0,0.00013683,2]
[337126139,1725447040193,-15275.56948383,0.00013687,2]
[337126142,1725447040210,-150.0,0.00013694,2]
[337126143,1725447040226,-534.76,0.00013699,2]
[337126144,1725447040241,-14794.35,0.00013699,2]
[337126145,1725447040256,-200.0,0.00013699,2]
[337126146,1725447040270,-17896.77,0.00013699,2]
[337126147,1725447040285,-500.0,0.00013699,2]
[337126148,1725447040299,-1915.92,0.00013699,2]
[337126149,1725447040314,-150.0,0.000137,2]
[337126150,1725447040328,-150.0,0.000137,2]
[337126151,1725447040343,-150.0,0.00013706,2]
[337126152,1725447040358,-150.0,0.0001371,2]
[337126153,1725447040372,-150.0,0.00013714,2]
[337126154,1725447040386,-150.0,0.00013716,2]
[337126155,1725447040399,-150.0,0.00013728,2]
[337126156,1725447040413,-150.0,0.00013738,2]
[337126157,1725447040427,-150.0,0.00013741,2]
[337126158,1725447040441,-522.8446944,0.00013755,2]
[337126159,1725447040459,-8249.38131829,0.00013755,2]
[337126160,1725447040474,-150.0,0.0001376,2]
[337126161,1725447040489,-200.0,0.00013765,2]
[337126162,1725447040503,-150.0,0.00013773,2]
[337126163,1725447040513,-150.0,0.00013782,2]
[337126164,1725447040522,-150.0,0.00013782,2]
[337126165,1725447040531,-152.36,0.000138,2]
[337126166,1725447040541,-150.0,0.00013804,2]
[337126167,1725447040550,-150.0,0.00013818,2]
[337126168,1725447040934,-150.0,0.00013826,2]
[337126169,1725447040951,-150.0,0.00013848,2]
[337126170,1725447040961,-150.0,0.00013854,2]
[337126171,1725447040971,-150.0,0.00013863,2]
[337126172,1725447040980,-150.0,0.0001387,2]
[337126173,1725447040989,-150.0,0.00013891,2]
[337126174,1725447040999,-150.0,0.00013892,2]
[337126175,1725447041009,-494.10166856,0.000139,2]
[337126176,1725447041020,-776.22869287,0.00013902,2]
[337126177,1725447041029,-200.0,0.00013904,2]
[337126178,1725447041038,-150.0,0.00013908,2]
[337126179,1725447041049,-150.0,0.00013914,2]
[337126180,1725447041058,-150.0,0.00013925,2]
[337126181,1725447041069,-1500.0,0.0001393,2]
[337126182,1725447041078,-150.0,0.00013937,2]
[337126183,1725447041088,-150.0,0.00013945,2]
[337126184,1725447041099,-150.0,0.00013946,2]
[337126185,1725447041108,-150.0,0.00013952,2]
[337126186,1725447041117,-150.0,0.00013959,2]
[337126187,1725447041128,-322.567479,0.00013973,2]
[337126188,1725447041138,-150.0,0.00013981,2]
[337126189,1725447041148,-150.0,0.00013991,2]
[337126190,1725447041157,-150.0,0.00013997,2]
[337126191,1725447041167,-150.0,0.00013997,2]
[337126192,1725447041176,-795.0,0.00014003,2]
[337126193,1725447041186,-150.0,0.00014003,2]
[337126194,1725447041195,-150.7305028,0.00014008,2]
[337126195,1725447041204,-1144.0,0.00014012,2]
[337126196,1725447041214,-150.0,0.00014025,2]
[337126197,1725447041224,-150.0,0.00014042,2]
[337126198,1725447041234,-150.0,0.00014047,2]
[337126199,1725447041243,-150.0,0.00014048,2]
[337126200,1725447041253,-1500.0,0.00014061,2]
[337126201,1725447041262,-150.0,0.00014063,2]
[337126202,1725447041272,-2764.0664,0.00014069,2]
[337126203,1725447041281,-150.0,0.00014069,2]
[337126204,1725447041291,-150.0,0.00014069,2]
[337126205,1725447041300,-1138.53308499,0.00014083,2]
[337126206,1725447041310,-1075.58324749,0.00014083,2]
[337126207,1725447041321,-150.0,0.00014087,2]
[337126208,1725447041330,-150.0,0.00014089,2]
[337126209,1725447041339,-150.0,0.00014091,2]
[337126210,1725447041349,-150.0,0.00014113,2]
[337126211,1725447041358,-150.0,0.00014129,2]
[337126212,1725447041367,-150.0,0.00014132,2]
[337126213,1725447041377,-150.0,0.00014134,2]
[337126214,1725447041387,-150.0,0.00014135,2]
[337126215,1725447041397,-150.0,0.00014141,2]
[337126216,1725447041407,-150.0,0.00014151,2]
[337126217,1725447041416,-150.0,0.00014157,2]
[337126218,1725447041426,-150.0,0.00014159,2]
[337126219,1725447041435,-1591.00864691,0.00014169,2]
[337126220,1725447041448,-480.758087,0.00014169,2]
[337126221,1725447041471,-500.0,0.00014169,2]
[337126222,1725447041486,-500.0,0.00014169,2]
[337126223,1725447041497,-464.61579363,0.00014169,2]
[337126224,1725447041943,-483.024498,0.00014169,2]
[337126239,1725447042706,-6723.34743954,0.00014169,2]
[337126241,1725447042717,-748.56,0.00014169,2]
[337126243,1725447042729,-714.36,0.00014169,2]
[337126252,1725447042805,-1535.85323252,0.00014169,2]
[337126260,1725447045788,-355.99679615,0.00014169,2]
[337126261,1725447045803,-2744.20620625,0.00014169,2]
[337126262,1725447045813,-150.0,0.00014173,2]
[337126263,1725447045822,-150.0,0.00014177,2]
[337126264,1725447045832,-150.0,0.00014179,2]
[337126265,1725447045844,-150.0,0.00014192,2]
[337126266,1725447045855,-150.0,0.00014193,2]
[337126267,1725447045865,-150.0,0.00014202,2]
[337126268,1725447045874,-150.0,0.00014203,2]
[337126269,1725447045883,-150.0,0.00014213,2]
[337126270,1725447045892,-150.0,0.00014222,2]
[337126271,1725447045902,-150.0,0.00014224,2]
[337126272,1725447045911,-150.0,0.00014237,2]
[337126273,1725447045922,-200.0,0.0001424,2]
[337126274,1725447045932,-150.0,0.00014246,2]
[337126275,1725447045942,-1767.76293848,0.00014259,2]
[337126276,1725447045952,-312.962779,0.00014261,2]
[337126277,1725447045962,-150.0,0.00014266,2]
[337126278,1725447045971,-150.0,0.00014267,2]
[337126279,1725447045982,-150.0,0.00014268,2]
[337126280,1725447045991,-290.54,0.00014268,2]
[337126281,1725447046000,-931.14,0.00014268,2]
[337126282,1725447046010,-500.0,0.00014268,2]
[337126283,1725447046019,-573.14,0.00014268,2]
[337126284,1725447046029,-500.0,0.00014268,2]
[337126285,1725447046038,-718.52,0.00014268,2]
[337126286,1725447046048,-940.0942,0.00014269,2]
[337126287,1725447046057,-740.0578,0.00014269,2]
[337126288,1725447046072,-1289.8741,0.00014269,2]
[337126290,1725447046082,-35958.3488,0.00014269,2]
[337126291,1725447046091,-3413.4275,0.00014269,2]
[337126292,1725447046100,-70843.2777,0.00014269,2]
[337126293,1725447046110,-259.41272485,0.00014269,2]
[337126294,1725447046120,-500.0,0.00014269,2]
[337126295,1725447046129,-500.0,0.00014269,2]
[337126296,1725447046138,-394.14563585,0.00014269,2]
[337126297,1725447046148,-1000.0,0.00014269,2]
[337126298,1725447046157,-500.0,0.00014269,2]
[337126299,1725447046167,-1484.6869,0.00014269,2]
[337126300,1725447046176,-225.86,0.0001427,2]
[337126301,1725447046187,-150.0,0.00014273,2]
[337126303,1725447046196,-1079.31958519,0.00014278,2]
[337126305,1725447046206,-1205.55694579,0.00014278,2]
[337126306,1725447046215,-209.96855529,0.00014278,2]
[337126307,1725447046224,-172.18570278,0.00014278,2]
[337126308,1725447046234,-182.91452336,0.0001428,2]
[337126309,1725447046243,-403.6515311,0.0001428,2]
[337126310,1725447046252,-150.0,0.00014284,2]
[337126311,1725447046261,-495.1235063,0.00014285,2]
[337126312,1725447046271,-150.0,0.0001429,2]
[337126313,1725447046280,-302.0,0.00014305,2]
[337126314,1725447046290,-883.88146924,0.00014306,2]
[337126315,1725447046299,-150.0,0.00014308,2]
[337126316,1725447046308,-150.0,0.00014311,2]
[337126317,1725447046320,-150.0,0.00014312,2]
[337126318,1725447046329,-150.0,0.00014312,2]
[337126319,1725447046338,-150.0,0.00014314,2]
[337126320,1725447046348,-495.1235063,0.00014316,2]
[337126321,1725447046357,-150.0,0.00014319,2]
[337126322,1725447046366,-740.35643987,0.00014319,2]
[337126323,1725447046376,-1000.0,0.0001432,2]
[337126324,1725447046385,-217.67,0.0001432,2]
[337126325,1725447046395,-1205.55694575,0.00014327,2]
[337126326,1725447046405,-167.570683,0.00014333,2]
[337126327,1725447046414,-167.570683,0.00014333,2]
[337126328,1725447046424,-167.570683,0.00014333,2]
[337126329,1725447046433,-167.570683,0.00014334,2]
[337126330,1725447046442,-150.0,0.00014334,2]
[337126331,1725447046452,-150.0,0.00014343,2]
[337126332,1725447046461,-495.1235063,0.00014347,2]
[337126333,1725447046470,-150.0,0.00014348,2]
[337126334,1725447046480,-883.88146924,0.00014349,2]
[337126335,1725447046489,-2651.64440772,0.00014349,2]
[337126336,1725447046498,-1767.76293848,0.0001435,2]
[337126337,1725447046508,-247.49707,0.00014354,2]
[337126338,1725447046520,-186.40062206,0.00014356,2]
[337126339,1725447046530,-204.14757017,0.00014356,2]
[337126340,1725447046539,-269.52727598,0.00014356,2]
[337126341,1725447046549,-214.07024681,0.00014356,2]
[337126342,1725447046559,-883.88146924,0.00014357,2]
[337126343,1725447046569,-7954.93322316,0.00014358,2]
[337126344,1725447046579,-151.07,0.00014358,2]
[337126345,1725447046590,-150.0,0.00014359,2]
[337126346,1725447046600,-37821.194513,0.00014359,2]
[337126347,1725447046609,-151.07,0.00014359,2]
[337126348,1725447046618,-45385.4334156,0.0001436,2]